fUSD/lending_fUSD_20260305
["ID","MTS","AMOUNT","RATE_DAILY","PERIOD"]
[407696400,1772687882683,500.0,0.00016973,2]
[407696401,1772687886188,547.49,0.00016973,2]
[407696402,1772687910435,-500.1029763,0.00017521,2]
[407696403,1772688142216,500.0,0.00012521,2]
[407696404,1772688142677,500.0,0.00012521,2]
[407696405,1772688143176,500.0,0.00012521,2]
[407696406,1772688143707,500.0,0.00012,2]
[407696407,1772688144187,500.0,0.00012,2]
[407696408,1772688144716,551.79104878,0.00012,2]
[407696409,1772688204890,150.0,0.0001,120]
[407696410,1772688211158,-500.0,0.00018,7]
[407696411,1772688307930,3027.0,0.0001,2]
[407696412,1772688515546,-500.0,0.0002,14]
[407696413,1772688515574,-155.1026,0.00021918,2]
[407696414,1772688515603,-1200.0,0.00021999,2]
[407696415,1772688515631,-2755.94016222,0.00022,2]
[407696416,1772688515806,-777.92447556,0.00022,2]
[407696417,1772688515833,-500.0,0.00022,2]
[407696418,1772688515862,-158.23,0.00022595,2]
[407696419,1772688515890,-1680.0,0.00024018,2]
[407696420,1772688515917,-158.23,0.00024649,2]
[407696421,1772688515944,-167.27,0.00024676,2]
[407696422,1772688515971,-765.70104888,0.00026222,2]
[407696423,1772688518248,-1585.29895112,0.00026222,2]
[407696424,1772688518276,-1332.72483209,0.00026499,2]
[407696425,1772688518304,-158.23,0.00026703,2]
[407696426,1772688518332,-153.286939,0.00027197,30]
[407696427,1772688518361,-248.92855558,0.00028628,2]
[407696428,1772688518478,-3043.07144442,0.00028628,2]
[407696429,1772688518506,-158.23,0.00028757,2]
[407696430,1772688518534,-462.0,0.00029405,2]
[407696431,1772688531865,-158.23,0.00030811,2]
[407696432,1772688531894,-2333.32,0.00030811,2]
[407696433,1772688531923,-1220.75,0.00030811,10]
[407696434,1772688532093,-2575.41,0.00030811,10]
[407696435,1772688532122,-2097.93,0.00030811,20]
[407696436,1772688532152,-43.48,0.00030811,2]
[407696437,1772688534959,-566.37,0.00030811,2]
[407696438,1772688534993,-4258.27,0.00031255,3]
[407696439,1772688538284,-350.73,0.00031255,3]
[407696440,1772688547695,2000.0,0.0003125,2]
[407696441,1772688550344,378.31004019,0.00026734,2]
[407696442,1772688616419,250.0,0.00015,2]
[407696446,1772688631432,-158.23,0.00032865,2]
[407696447,1772688631442,-195.0,0.00033494,120]
[407696448,1772688631452,-195.0,0.00034776,120]
[407696449,1772688631462,-195.0,0.00034776,120]
[407696450,1772688631471,-195.0,0.00034776,120]
[407696451,1772688631480,-158.23,0.00034919,2]
[407696452,1772688631489,-852.42999912,0.00035,120]
[407696453,1772688631498,-22647.0,0.000355,2]
[407696454,1772688631507,-300.0,0.00035799,3]
[407696455,1772688631517,-400.0,0.00035799,3]
[407696456,1772688631526,-1600.0,0.00035799,3]
[407696457,1772688631535,-150.0,0.00035865,30]
[407696458,1772688631545,-195.0,0.00036152,120]
[407696459,1772688631554,-300.0,0.00036152,120]
[407696460,1772688631563,-250.0,0.00036152,2]
[407696461,1772688631573,-312.0,0.00036356,30]
[407696462,1772688631583,-311.0,0.00036356,30]
[407696463,1772688631592,-5532.0,0.000364,3]
[407696464,1772688631602,-158.23,0.00036973,2]
[407696465,1772688631611,-186.3154368,0.000372,120]
[407696466,1772688631621,-5532.0,0.000373,5]
[407696467,1772688631630,-186.0,0.00038353,5]
[407696468,1772688631641,-2240.0,0.00038503,5]
[407696469,1772688631651,-158.23,0.00039028,2]
[407696470,1772688631661,-158.455,0.00039726,120]
[407696472,1772688631670,-917.45,0.00039831,120]
[407696473,1772688631679,-156.41920502,0.0003988,2]
[407696474,1772688631689,-22964.53,0.0003998,10]
[407696475,1772688631698,-19137.11,0.0003998,10]
[407696476,1772688631707,-15947.59,0.0003998,10]
[407696477,1772688631716,-151.0,0.00039987,14]
[407696478,1772688631726,-1300.0,0.00039989,4]
[407696479,1772688631735,-2037.0,0.00039989,4]
[407696480,1772688631744,-16531.40625254,0.0003999,2]
[407696481,1772688631756,-18037.29410187,0.0003999,2]
[407696482,1772688631767,-21388.83831728,0.0003999,2]
[407696483,1772688631777,-27557.43,0.0003999,10]
[407696484,1772688631787,-123.07899147,0.0004,120]
[407696485,1772688631799,-34664.90920125,0.0004,120]
[407696486,1772688631808,-1287.229806,0.00040979,60]
[407696487,1772688631819,-158.23,0.00041082,2]
[407696488,1772688631836,-2468.18603545,0.00041325,2]
[407696489,1772688631846,-160.0,0.00041363,2]
[407696490,1772688631855,-1007.0,0.00041411,5]
[407696491,1772688631866,-152.0,0.00041525,3]
[407696492,1772688631879,-1048.50100127,0.00042006,2]
[407696493,1772688631889,-306.61635286,0.00042006,2]
[407696494,1772688631899,-856.13486002,0.00042006,2]
[407696495,1772688631909,-307.87522791,0.00042006,2]
[407696496,1772688631919,-300.0,0.00042006,2]
[407696497,1772688631928,-459.37693596,0.00042006,2]
[407696498,1772688631937,-372.1160746,0.00042006,2]
[407696499,1772688631947,-471.02632524,0.00042006,2]
[407696500,1772688631956,-300.28645221,0.00042006,2]
[407696501,1772688631965,-519.58908537,0.00042006,2]
[407696502,1772688631975,-306.82968309,0.00042006,2]
[407696503,1772688631984,-300.0,0.00042006,2]
[407696504,1772688631994,-1084.19175733,0.00042006,2]
[407696505,1772688632003,-1048.50100127,0.00042006,2]
[407696506,1772688632013,-306.61635286,0.00042006,2]
[407696507,1772688632022,-562.75995347,0.00042006,2]
[407696508,1772688632038,-293.37490655,0.00042006,2]
[407696509,1772688632048,-307.87522791,0.00042006,2]
[407696510,1772688632057,-300.0,0.00042006,2]
[407696511,1772688632067,-459.37693596,0.00042006,2]
[407696512,1772688632077,-372.1160746,0.00042006,2]
[407696513,1772688632087,-300.28645221,0.00042006,2]
[407696514,1772688632097,-300.29139703,0.00042006,2]
[407696516,1772688637808,-151.18256391,0.00035271,7]
[407696517,1772688637819,-1419.2249445,0.00040031,2]
[407696518,1772688637834,-3615.8370152,0.00040031,2]
[407696519,1772688637843,-924.87087155,0.00041943,2]
[407696520,1772688637853,-2747.13499888,0.00041943,2]
[407696521,1772688637863,-930.0,0.00042006,60]
[407696522,1772688637874,-219.29768834,0.00042006,2]
[407696523,1772688637884,-306.82968309,0.00042006,2]
[407696524,1772688637894,-300.0,0.00042006,2]
[407696525,1772688637905,-1084.19175733,0.00042006,2]
[407696526,1772688637915,-1000.0,0.0004236,2]
[407696527,1772688637925,-582.48335374,0.00042679,2]
[407696528,1772688637935,-150.0,0.00042768,2]
[407696529,1772688637945,-200.0,0.00043075,2]
[407696530,1772688637955,-158.23,0.00043136,2]
[407696531,1772688637965,-168.0,0.00043264,2]
[407696532,1772688637975,-241.4289713,0.00043284,2]
[407696533,1772688637984,-160.08731038,0.00043284,2]
[407696534,1772688637994,-168.0,0.00043425,7]
[407696535,1772688638004,-168.0,0.0004347,2]
[407696536,1772688638014,-168.0,0.00043475,2]
[407696537,1772688638025,-3999.9125,0.00043507,2]
[407696538,1772688638035,-3999.9125,0.00043662,2]
[407696539,1772688638049,-3999.9125,0.00043818,2]
[407696540,1772688638059,-1906.7722,0.00043946,2]
[407696541,1772688638069,-3999.9125,0.00043973,2]
[407696542,1772688638078,-167.846,0.00044076,69]
[407696544,1772688638088,-3265.266,0.00044076,69]
[407696545,1772688638098,-3999.9125,0.00044128,2]
[407696546,1772688638108,-168.0,0.00044165,7]
[407696547,1772688638117,-168.0,0.00044263,2]
[407696548,1772688638127,-3999.9125,0.00044284,2]
[407696549,1772688638137,-168.0,0.0004434,120]
[407696550,1772688638147,-653.93007774,0.00044355,15]
[407696551,1772688638157,-3999.9125,0.00044439,2]
[407696552,1772688638166,-168.0,0.00044455,2]
[407696553,1772688638176,-3999.9125,0.00044594,2]
[407696554,1772688638186,-653.93007769,0.00044602,15]
[407696555,1772688638197,-3999.9125,0.0004475,2]
[407696556,1772688638206,-917.45,0.0004481,120]
[407696557,1772688638218,-653.93007769,0.00044849,15]
[407696558,1772688638229,-6746.8794,0.000449,2]
[407696559,1772688638240,-3999.9125,0.00044905,2]
[407696560,1772688638251,-1906.7722,0.00045045,2]
[407696561,1772688638261,-3999.9125,0.00045061,2]
[407696562,1772688638270,-653.93007769,0.00045096,15]
[407696563,1772688638282,-1123.4741814,0.00045144,2]
[407696564,1772688638292,-158.23,0.0004519,2]
[407696565,1772688638301,-3999.9125,0.00045216,2]
[407696566,1772688638312,-206.43018686,0.00045276,2]
[407696567,1772688638322,-653.93007769,0.00045343,15]
[407696568,1772688638333,-3999.9125,0.00045371,2]
[407696569,1772688638345,-168.0,0.00045422,2]
[407696570,1772688638354,-168.0,0.00045426,2]
[407696571,1772688638364,-194.39,0.0004547,30]
[407696572,1772688638375,-1285.81953042,0.00045498,2]
[407696573,1772688638388,-1115.40527352,0.00045498,2]
[407696574,1772688638402,-3767.05441219,0.00045498,2]
[407696575,1772688638413,-1135.32903062,0.00045498,2]
[407696576,1772688638428,-5275.79175325,0.00045498,2]
[407696577,1772688638438,-3999.9125,0.00045527,2]
[407696578,1772688638449,-168.0,0.0004553,2]
[407696579,1772688638458,-300.0,0.00045531,2]
[407696580,1772688638468,-653.93007769,0.0004559,15]
[407696581,1772688638478,-168.0,0.00045643,2]
[407696582,1772688638488,-168.0,0.00045702,2]
[407696583,1772688638499,-168.0,0.00045714,30]
[407696584,1772688638510,-150.0,0.00045786,10]
[407696585,1772688638520,-150.0,0.00045786,10]
[407696586,1772688638530,-150.0,0.00045786,10]
[407696587,1772688638540,-150.0,0.00045786,10]
[407696588,1772688638549,-150.0,0.00045786,10]
[407696589,1772688638559,-150.0,0.00045786,10]
[407696590,1772688638568,-150.0,0.00045786,10]
[407696591,1772688638578,-150.0,0.00045786,10]
[407696592,1772688638590,-150.0,0.00045786,10]
[407696593,1772688638600,-150.0,0.00045786,10]
[407696594,1772688638610,-150.0,0.00045786,10]
[407696595,1772688638621,-150.0,0.00045786,10]
[407696596,1772688638631,-150.0,0.00045786,10]
[407696597,1772688638642,-150.0,0.00045786,10]
[407696598,1772688638652,-150.0,0.00045786,10]
[407696599,1772688638661,-150.0,0.00045786,10]
[407696600,1772688638670,-150.0,0.00045786,10]
[407696601,1772688638680,-150.0,0.00045786,10]
[407696602,1772688638689,-150.0,0.00045786,10]
[407696603,1772688638698,-150.0,0.00045786,10]
[407696604,1772688638709,-273.0,0.00045786,10]
[407696605,1772688638718,-490.11,0.00045807,30]
[407696606,1772688638728,-1359.8985,0.00045834,2]
[407696607,1772688638739,-2500.0,0.00045834,2]
[407696608,1772688638749,-653.93007769,0.00045837,15]
[407696609,1772688638759,-153.67341005,0.00045844,15]
[407696610,1772688638769,-808.08422422,0.00045844,28]
[407696611,1772688638780,-153.67341002,0.00045936,15]
[407696612,1772688638791,-500.0,0.00045943,120]
[407696613,1772688638804,-500.0,0.00045943,120]
[407696614,1772688638815,-485.21010783,0.00045943,120]
[407696615,1772688638835,-241.66853492,0.00045943,120]
[407696616,1772688638846,-500.0,0.00045943,120]
[407696617,1772688638855,-500.0,0.00045943,120]
[407696618,1772688638866,-500.0,0.00045943,120]
[407696619,1772688638876,-420.10311703,0.00045943,120]
[407696620,1772688638886,-214.7638909,0.00045943,120]
[407696621,1772688638895,-2518.37035529,0.00045944,54]
[407696622,1772688638905,-21655.62604111,0.00045944,2]
[407696623,1772688638917,-8355.461751,0.00045944,2]
[407696624,1772688638928,-36008.590824,0.00045944,2]
[407696627,1772688640042,-1196.19,0.00045944,2]
[407696631,1772688645044,-1674.63871613,0.00045934,10]
[407696632,1772688645105,-11615.02128387,0.00045934,10]
[407696633,1772688645114,-2134.97871613,0.00045944,2]
[407696637,1772688645338,-60521.88172501,0.00045944,2]
[407696638,1772688645454,-686.11417984,0.00045944,2]
[407696639,1772688645465,-30214.52398424,0.00045944,2]
[407696640,1772688645476,-1383.06069021,0.00045944,2]
[407696658,1772688653353,2000.0,0.0003081,2]
[407696659,1772688653382,2000.0,0.0003081,2]
[407696661,1772688663000,184.25917093,0.00016973,2]
[407696662,1772688697953,2000.0,0.0003081,2]
[407696663,1772688958275,10000.0,0.00029405,2]
[407696664,1772689038245,0.01,0.000294,2]
[407696665,1772689038270,1999.99,0.000294,2]
[407696666,1772689422161,981.0,0.00029405,2]
[407696667,1772689622688,184.25917093,0.00016973,2]
[407696669,1772689831560,-264.73530605,0.00029865,2]
[407696670,1772689831571,-300.0,0.00029898,120]
[407696671,1772689831581,-5131.71312485,0.00029931,2]
[407696672,1772689831593,-300.0,0.00029959,120]
[407696673,1772689831606,-195.0,0.00029966,120]
[407696674,1772689831618,-221.58,0.0003,90]
[407696675,1772689831629,-195.0,0.00030031,120]
[407696676,1772689831639,-191.7200235,0.00030067,120]
[407696677,1772689831649,-300.0,0.00030248,2]
[407696678,1772689831659,-400.0,0.00030248,2]
[407696679,1772689831670,-1600.0,0.00030248,2]
[407696680,1772689831680,-400.0,0.00030248,2]
[407696681,1772689831691,-252.324991,0.0003135,30]
[407696682,1772689831702,-560.0,0.00032592,2]
[407696683,1772689831714,-300.0,0.00032852,120]
[407696684,1772689831724,-250.0,0.00032852,2]
[407696685,1772689831734,-250.0,0.00032924,2]
[407696686,1772689831744,-300.0,0.00032924,120]
[407696687,1772689831754,-300.0,0.00032924,30]
[407696688,1772689831764,-195.0,0.00032924,120]
[407696689,1772689831777,-871.35275769,0.0003299,2]
[407696691,1772689831788,-1387.0,0.00032998,3]
[407696693,1772689831798,-1288.0,0.00032999,2]
[407696694,1772689831808,-2109.48,0.00033,2]
[407696695,1772689831819,-9999.99,0.00033,2]
[407696696,1772689831829,-3712.14,0.00033,2]
[407696697,1772689831839,-150.99,0.00033,2]
[407696698,1772689831850,-11145.78373402,0.00033,10]
[407696699,1772689831863,-9376.75626598,0.00033,10]
[407696700,1772689831874,-1541.29,0.00033,20]
[407696701,1772689831884,-6266.07,0.00033,2]
[407696702,1772689831895,-258.96,0.00033,10]
[407696703,1772689831906,-9999.99,0.00033,2]
[407696704,1772689831917,-1250.9,0.00033,2]
[407696705,1772689831928,-150.99,0.00033,30]
[407696706,1772689831939,-3195.69,0.00033,2]
[407696707,1772689831950,-299.99,0.00033,30]
[407696708,1772689831960,-250.0,0.00033,2]
[407696709,1772689831971,-300.0,0.00033,120]
[407696710,1772689831981,-195.0,0.00033,120]
[407696711,1772689831992,-32549.0,0.000346,2]
[407696712,1772689832002,-253.44269032,0.00034823,2]
[407696713,1772689832013,-11896.07,0.0003488,10]
[407696714,1772689832024,-17130.35,0.0003489,10]
[407696715,1772689832034,-14275.29,0.0003489,10]
[407696716,1772689832046,-166.66,0.00035053,30]
[407696717,1772689832056,-400.0,0.00035118,2]
[407696718,1772689832067,-151.0,0.00035277,14]
[407696719,1772689832077,-5532.0,0.000354,3]
[407696720,1772689832088,-163.67,0.0003566,2]
[407696721,1772689832099,-166.66,0.00035791,30]
[407696722,1772689832110,-229.13,0.00035841,2]
[407696723,1772689832123,-5532.0,0.000363,5]
[407696724,1772689832134,-479.0,0.00036356,30]
[407696725,1772689832144,-166.66,0.00036529,30]
[407696726,1772689832156,-188.35511503,0.000372,120]
[407696727,1772689832171,-1000.0,0.00037219,2]
[407696728,1772689832182,-2000.0,0.0003725,120]
[407696729,1772689832193,-200.0,0.00037262,2]
[407696730,1772689832204,-166.66,0.00037267,30]
[407696731,1772689832216,-178.0,0.000375,120]
[407696732,1772689832226,-229.13,0.00037633,2]
[407696733,1772689832240,-1000.0,0.000378,2]
[407696734,1772689832250,-166.66,0.00038005,30]
[407696735,1772689832261,-6074.22292279,0.00038678,2]
[407696736,1772689832274,-970.48795508,0.00038678,2]
[407696738,1772689837701,-1185.97986445,0.00038678,2]
[407696739,1772689837756,-4516.2373811,0.00038678,2]
[407696740,1772689837870,-1014.48531197,0.00038678,2]
[407696741,1772689837882,-1000.18832674,0.00038678,2]
[407696742,1772689837893,-497.21169758,0.00038678,2]
[407696743,1772689837905,-2922.78494547,0.00038678,2]
[407696744,1772689837916,-748.26893567,0.00038678,2]
[407696977,1772689840300,-1070.12265915,0.00038678,2]
[407696979,1772689840310,-166.66,0.00038743,30]
[407696981,1772689840319,-229.13,0.00039426,2]
[407696983,1772689840328,-196.17902337,0.00039446,2]
[407696985,1772689840337,-521.59,0.00039546,2]
[407696987,1772689840346,-264.68,0.00039603,2]
[407696989,1772689840355,-196.1790233,0.0004024,15]
[407696991,1772689840364,-196.1790233,0.00041034,15]
[407696993,1772689840373,-602.86849368,0.00041083,2]
[407696995,1772689840383,-229.13,0.00041218,2]
[407696997,1772689840392,-1088.45,0.00041476,120]
[407696999,1772689840401,-166.66,0.00041554,2]
[407697001,1772689840410,-5687.0,0.00041681,60]
[407697003,1772689840419,-196.1790233,0.00041827,15]
[407697005,1772689840429,-168.641,0.00042018,63]
[407697007,1772689840438,-3286.147,0.00042018,63]
[407697009,1772689840447,-1048.50100127,0.00042018,2]
[407697011,1772689840456,-306.61635286,0.00042018,2]
[407697013,1772689840466,-856.13486002,0.00042018,2]
[407697015,1772689840475,-307.87522791,0.00042018,2]
[407697017,1772689840484,-459.37693596,0.00042018,2]
[407697019,1772689840493,-372.1160746,0.00042018,2]
[407697021,1772689840502,-300.28645221,0.00042018,2]
[407697023,1772689840511,-519.58908537,0.00042018,2]
[407697025,1772689840520,-511.10986249,0.00042018,2]
[407697026,1772689840529,-300.0,0.00042018,2]
[407697028,1772689840537,-1084.19175733,0.00042018,2]
[407697030,1772689840546,-1048.50100127,0.00042018,2]
[407697032,1772689840555,-306.61635286,0.00042018,2]
[407697034,1772689840565,-856.13486002,0.00042018,2]
[407697036,1772689840574,-307.87522791,0.00042018,2]
[407697038,1772689840583,-459.37693596,0.00042018,2]
[407697040,1772689840591,-372.1160746,0.00042018,2]
[407697042,1772689840600,-400.96302782,0.00042018,2]
[407697044,1772689840609,-490.94366922,0.00042018,2]
[407697047,1772689840624,-202.74314421,0.00042018,2]
[407697049,1772689840633,-300.0,0.00042018,2]
[407697051,1772689840643,-132.36584963,0.00042018,2]
[407697458,1772689844903,-322.94797957,0.00042018,2]
[407697464,1772689844963,-628.87792813,0.00042018,2]
[407697466,1772689844972,-69.96692248,0.00042621,15]
[407697484,1772689845194,-126.21210082,0.00042621,15]
[407697486,1772689845203,-243.55922517,0.00042761,2]
[407697488,1772689845218,-6500.0,0.00042761,2]
[407697528,1772689845666,-10009.953114,0.00042761,2]
[407697530,1772689845677,-375.16371793,0.00042761,2]
[407697551,1772689845911,-381.35059517,0.00042761,2]
[407697647,1772689847266,152.0,0.000294,4]
[407698046,1772689954519,2000.0,0.000294,2]
[407698047,1772690223367,501.53472858,0.00017354,3]
[407698048,1772690350226,10000.01,0.0002,2]
[407698049,1772690360545,-4254.80998469,0.0002,2]
[407698051,1772690450548,5000.01,0.000162,5]
[407698052,1772690450570,5000.01,0.000162,5]
[407698053,1772690450592,5000.01,0.000162,5]
[407698054,1772690450615,9.92573424,0.000162,5]
[407698055,1772690533561,-5000.01,0.00017,2]
[407698056,1772690534396,-5000.01,0.00017,2]
[407698057,1772690537615,-5000.01,0.00017,2]
[407698058,1772690540479,-5000.01,0.00017,2]
[407698059,1772690543646,-5000.01,0.00017,2]
[407698060,1772690546558,-5000.01,0.00017,2]
[407698062,1772690550028,-5000.01,0.00017,2]
[407698063,1772690552574,-5000.01,0.00017,2]
[407698064,1772690555822,-5000.01,0.00017,2]
[407698065,1772690558651,-5000.01,0.00017,2]
[407698066,1772690561968,-5000.01,0.00017,2]
[407698067,1772690564744,-5000.01,0.00017,2]
[407698068,1772690568026,-5000.01,0.00017,2]
[407698069,1772690568326,504.0,0.000151,2]
[407698074,1772690573954,-5000.01,0.00017,2]
[407698075,1772690592520,-300.0,0.00016999,2]
[407698076,1772690602725,150.0,0.000169,2]
[407698077,1772690611760,1200.0,0.00016999,2]
[407698078,1772690618343,-10000.01,0.00017,2]
[407698079,1772690618751,-10000.01,0.00017,2]
[407698080,1772690619094,-4090.1541605,0.00017,2]
[407698081,1772690619120,-1819.701679,0.00017,2]
[407698082,1772690619435,-250.0,0.0001735,2]
[407698083,1772690619464,-786.02148944,0.000177,2]
[407698084,1772690619494,-250.0,0.000187,2]
[407698085,1772690619522,-387.48798187,0.00019166,2]
[407698086,1772690619550,-228.87552726,0.000199,2]
[407698087,1772690619577,-1000.0,0.00019999,2]
[407698088,1772690619677,-4195.24000286,0.0002,2]
[407698089,1772690619810,-10000.01,0.0002,2]
[407698090,1772690620101,-10000.01,0.0002,2]
[407698091,1772690620313,-10000.01,0.0002,2]
[407698092,1772690620523,-10000.01,0.0002,2]
[407698093,1772690620850,-10000.01,0.0002,2]
[407698094,1772690632315,-10000.01,0.0002,2]
[407698095,1772690632423,-10000.01,0.0002,2]
[407698096,1772690632560,-823.60009801,0.0002,2]
[407698097,1772690632586,-8352.80980398,0.0002,2]
[407698098,1772690632657,-300.0,0.0002,2]
[407698099,1772690635956,500.0,0.00017,2]
[407698100,1772690644924,151.0,0.00014634,2]
[407698101,1772690645046,151.0,0.00014634,2]
[407698102,1772690647694,5838.102681,7.945e-05,2]
[407698103,1772690658277,200.0,0.0001202,2]
[407698104,1772690658605,200.0,0.0001202,2]
[407698105,1772690658866,200.0,0.0001202,2]
[407698106,1772690659158,200.0,0.0001202,2]
[407698107,1772690659441,200.0,0.0001202,7]
[407698108,1772690661327,151.0,0.00014634,2]
[407698109,1772690665793,2000.0,0.000199,2]
[407698110,1772690666777,208.907319,0.000198,2]
[407698111,1772690666798,400.82319646,0.000198,2]
[407698112,1772690708271,5011.247659,7.945e-05,2]
[407698113,1772690711045,500.0,0.00014373,2]
[407698114,1772690711108,502.68587184,0.00014921,2]
[407698115,1772690714234,500.88173687,0.00016973,2]
[407698116,1772690719622,500.0,0.00014373,2]
[407698117,1772690719674,504.97753483,0.00014921,2]
[407698118,1772690726927,150.72181509,0.000199,2]
[407698119,1772690804883,-388848.97376334,0.00046691,60]
[407698120,1772690804913,-23146.65030331,0.00046691,61]
[407698121,1772690804943,-195.76715083,0.00046691,90]
[407698122,1772690804971,-153.00302599,0.00046691,120]
[407698123,1772690804996,-789.22273734,0.00046691,31]
[407698124,1772690805021,-158.74106616,0.00046691,30]
[407698125,1772690805045,-281.87134263,0.00046691,120]
[407698126,1772690805069,-2098.63027611,0.00046691,30]
[407698127,1772690805094,-4938.22997962,0.00046691,30]
[407698128,1772690805119,-282.74786965,0.00046691,30]
[407698129,1772690805144,-485.86834753,0.00046691,30]
[407698130,1772690805167,-5158.41171556,0.00046691,60]
[407698131,1772690805191,-432.82491214,0.00046691,48]
[407698132,1772690805215,-158.80144294,0.00046691,60]
[407698133,1772690805239,-1127.49172153,0.00046691,120]
[407698134,1772690805263,-742.244534,0.00046691,30]
[407698135,1772690805287,-8045.45135601,0.00046691,60]
[407698136,1772690805310,-12214.08212347,0.00046691,120]
[407698137,1772690805334,-2565135.71457618,0.00046691,60]
[407698138,1772690805361,-432.74774337,0.00046691,120]
[407698139,1772690805385,-159.3687397,0.00046691,120]
[407698140,1772690805408,-825.46250149,0.00046691,120]
[407698141,1772690805432,-50000.0,0.00046691,69]
[407698142,1772690805460,-1968.14567257,0.00046691,120]
[407698143,1772690805489,-10000.0,0.00046691,120]
[407698144,1772690805513,-821.05898387,0.00046691,30]
[407698145,1772690805536,-50469.0,0.00046691,120]
[407698146,1772690805561,-500.0,0.00046691,120]
[407698147,1772690805586,-410.55905394,0.00046691,120]
[407698148,1772690805609,-150.0,0.00046691,30]
[407698149,1772690805634,-2000.00378157,0.00046691,30]
[407698150,1772690805657,-850000.56196779,0.00046691,120]
[407698151,1772690805681,-4518.42,0.00046691,120]
[407698152,1772690805704,-150.52780131,0.00046691,120]
[407698153,1772690805728,-22145.58161508,0.00046691,46]
[407698154,1772690805754,-15123.79097631,0.00046691,120]
[407698155,1772690805780,-155.54,0.00046691,120]
[407698156,1772690805806,-10544.709195,0.00046691,120]
[407698157,1772690805830,-500.0,0.00046691,30]
[407698158,1772690805855,-500.0,0.00046691,60]
[407698159,1772690805881,-500.0,0.00046691,60]
[407698160,1772690805907,-501.97627661,0.00046691,60]
[407698161,1772690805932,-9500.60186317,0.00046691,120]
[407698162,1772690805957,-2047.0,0.00046691,30]
[407698163,1772690805982,-1390610.17295195,0.00046691,60]
[407698164,1772690806006,-561070.04263193,0.00046691,120]
[407698165,1772690809083,-816065.30687293,0.00046691,120]
[407698166,1772690809113,-116880.92489415,0.00046691,60]
[407698167,1772690809140,-288.82,0.00046691,120]
[407698168,1772690809166,-5000.0,0.00046691,120]
[407698169,1772690809191,-150.0,0.00046691,120]
[407698170,1772690809216,-909617.84671102,0.00046691,60]
[407698171,1772690835909,248.24429007,0.00015,2]
[407698172,1772690835982,500.0,0.00015,2]
[407698173,1772690836511,500.0,0.00015,2]
[407698174,1772690836655,500.0,0.00015,2]
[407698175,1772690836681,180.42789584,0.00015,2]
[407698176,1772690836703,322.63611697,0.00015,2]
[407698177,1772690837036,500.0,0.00015,2]
[407698178,1772690837096,500.0,0.00015,2]
[407698179,1772690837503,500.0,0.00012,2]
[407698180,1772690837576,500.0,0.00012,2]
[407698181,1772690837991,510.04779469,0.00012,2]
[407698182,1772690838060,507.63217432,0.00012,2]
[407698183,1772690840537,500.0,0.00015,2]
[407698184,1772690842097,500.0,0.00015,2]
[407698185,1772690842594,500.0,0.00015,2]
[407698186,1772690843098,500.0,0.00015,2]
[407698187,1772690843306,500.54096454,0.00015,2]
[407698188,1772690843586,500.0,0.00012,2]
[407698189,1772690844372,500.0,0.00046691,120]
[407698190,1772690844863,500.0,0.00012,2]
[407698191,1772690845359,541.66465208,0.00012,2]
[407698192,1772690846874,-300.0,0.00023,30]
[407698193,1772690846903,-2557.85199807,0.00035,120]
[407698194,1772690846929,-188.35511503,0.000372,120]